Cogmind - Beta 16.1 @@@ ROGUE MODE // 2026.03.18 @ 06:18:26 Player: OniAn Result: Self-destructed Performance ------------- Evolutions (2) 1000 Regions Visited (7) 1400 Robots Destroyed (24) 120 Value Destroyed (755) 755 Prototype IDs (24) 480 Alien Tech Used (0) 0 Bonus (300) 300 TOTAL SCORE: 4055 Bonus ------- Aligned with FarCom 300 Cogmind --------- Core Integrity 137/550 Matter 300/300 Energy 290/290 System Corruption 0% Temperature Cool (9) Movement Treading (240) Ox1 Location -8/Materials Parts ------- > --- POWER (2) -------- Improved Deuterium Engine > --- PROPULSION (3) --- Light Treads > --- UTILITY (4) ------ Small Storage Unit > --- WEAPON (2) ------- Guided Plasma Cannon > --- INVENTORY (8) ---- System Shield System Shield System Shield System Shield Gauss Rifle Improved Datajack Peak State ------------ > --- POWER ------------ Backup Power III Light Nuclear Core > --- PROPULSION ------- Light Treads Light Treads Advanced Treads > --- UTILITY ---------- Small Storage Unit Transmission Jammer Hardened Light Armor Plating > --- WEAPON ----------- Arc Projector Arc Projector > --- INVENTORY -------- System Shield System Shield System Shield System Shield Ion Cannon Guided Plasma Cannon Gauss Rifle Improved Datajack [Rating: 29] Favorites ----------- Power Light Nuclear Core Engine Backup Power III Power Core Light Nuclear Core Propulsion Light Treads Treads Light Treads Utility Small Storage Unit Device Improved Sensor Array Storage Small Storage Unit Processor Signal Interpreter Protection Medium Armor Plating Weapon Beam Cannon Energy Gun EM Pulse Gun Energy Cannon Beam Cannon Ballistic Gun Light Assault Rifle Build | -11 -10 -10 -9 -9 -9 -8 -8 ------- Run | Yrd Mat Min Mat Min Exi Min Mat Slots Evolved 4 | . . . 2 . . . 2 Power 1 | . . . . . . . 1 Propulsion 1 | . . . . . . . 1 Utility 2 | . . . 2 . . . . Weapon . | . . . . . . . . Parts Attached 28 | 6 1 5 5 . . . 11 Power 6 | 1 . 1 2 . . . 2 Engine 4 | 1 . 1 1 . . . 1 Core 2 | . . . 1 . . . 1 Reactor . | . . . . . . . . Propulsion 6 | 2 . 2 . . . . 2 Treads 6 | 2 . 2 . . . . 2 Leg . | . . . . . . . . Wheel . | . . . . . . . . Hover . | . . . . . . . . Flight . | . . . . . . . . Utility 8 | 1 1 . 3 . . . 3 Device 2 | . . . 1 . . . 1 Storage 1 | 1 . . . . . . . Processor 2 | . 1 . 1 . . . . Hackware . | . . . . . . . . Protection 3 | . . . 1 . . . 2 Artifact . | . . . . . . . . Weapon 8 | 2 . 2 . . . . 4 Energy Gun 3 | . . 1 . . . . 2 Energy Cannon 3 | . . 1 . . . . 2 Ballistic Gun 2 | 2 . . . . . . . Ballistic Cannon . | . . . . . . . . Launcher . | . . . . . . . . Special Weapon . | . . . . . . . . Impact Weapon . | . . . . . . . . Slashing Weapon . | . . . . . . . . Piercing Weapon . | . . . . . . . . Special Melee Weapon . | . . . . . . . . Unidentified Prototypes 1 | . . . 1 . . . . Parts Lost 15 | . . 3 . . . . 12 Power 4 | . . 1 . . . . 3 Propulsion 4 | . . 1 . . . . 3 Utility 3 | . . . . . . . 3 Weapon 4 | . . 1 . . . . 3 Highest Loss Streak 9 | . . 3 . . . . 9 To Critical Strikes . | . . . . . . . . Average Backups 6 | . . 1 7 8 8 8 7 Power . | . . . . . . . . Propulsion . | . . . . . . . . Utility 2 | . . . 1 4 4 4 4 Weapon 3 | . . 1 5 4 4 4 3 Tool/Special . | . . . . . . . . Unused Backups 14 | . . . 4 . 1 1 8 Power . | . . . . . . . . Propulsion . | . . . . . . . . Utility 4 | . . . . . . . 4 Weapon 9 | . . . 4 . 1 1 3 Tool/Special 1 | . . . . . . . 1 Average Slot Usage (%) 91 | . 94 94 91 100 100 100 79 Engine 5 | . 14 12 5 . . . 6 Core 6 | . . . 5 11 11 11 6 Treads 22 | . 28 26 22 22 22 22 21 Device 6 | . . . 3 11 11 11 8 Storage 10 | . 14 14 11 11 11 11 9 Processor 9 | . 8 14 11 11 11 11 2 Protection 8 | . . . 9 11 11 11 8 Energy Gun 9 | . . 2 11 11 11 11 11 Energy Cannon 8 | . . 2 11 11 11 11 3 Ballistic Gun 3 | . 28 19 . . . . . Peak Build Rating 29 | 6 7 8 15 15 16 16 29 Average Rating 14 | 4 6 6 12 15 15 16 22 On Entrance 10 | . 6 7 8 15 15 16 16 Avg Prop Armor Cover (%) . | . . . . . . . . Naked Turns . | . . . . . . . . Heaviest Build 26 | 13 13 17 25 23 23 23 26 Greatest Support 62 | 40 40 40 40 40 40 40 62 Greatest Overweight (x) 6 | 1 . . . . . . 6 Average Overweight (x) . | . . . . . . . . Largest Inventory Capacity 8 | 8 8 8 8 8 8 8 8 Average Capacity 7 | 6 8 8 8 8 8 8 8 Most Carried 8 | . 1 2 8 8 8 8 8 Average Carried 6 | . . 1 7 8 7 7 7 Final Capacity 8 | 8 8 8 8 8 8 8 8 Final Carried 8 | . 1 1 8 8 8 8 6 Class Distribution -------------------- 84% | Mutant 15% | Skirmisher Dominant Class ---------------- Mutant | -10/Materials Mutant | -10/Mines Mutant | -9/Materials Mutant | -9/Mines Mutant | -9/Exiles Skirmisher | -8/Mines Mutant | -8/Materials Resources | -11 -10 -10 -9 -9 -9 -8 -8 ----------- Run | Yrd Mat Min Mat Min Exi Min Mat Matter Collected 538 | 174 27 167 45 . . . 125 Remotely . | . . . . . . . . Salvage Created 935 | . 47 104 220 . . 53 511 Parts 68 | . 7 6 18 . . 4 33 Haulers Intercepted . | . . . . . . . . Recyclers Shooed 2 | . . . 1 . . . 1 Parts Field Recycled . | . . . . . . . . Retrieved Matter . | . . . . . . . . Parts Self-Destructed . | . . . . . . . . Prevented . | . . . . . . . . Parts Restored . | . . . . . . . . Kills | -11 -10 -10 -9 -9 -9 -8 -8 ------- Run | Yrd Mat Min Mat Min Exi Min Mat Combat Hostiles Destroyed 21 | . 3 2 6 . . 1 9 Guns 12 | . 3 2 3 . . 1 3 Cannons 9 | . . . 3 . . . 6 Classes Destroyed 8 | . 1 1 2 . . 1 3 Recycler 1 | . . . . . . . 1 Watcher 2 | . . . 1 . . . 1 Swarmer 8 | . 3 . 2 . . . 3 Grunt 5 | . . . 4 . . . 1 Brawler 1 | . . . . . . . 1 Sentry 2 | . . 2 . . . . . Specialist 3 | . . . . . . . 3 Hunter 2 | . . . . . . 1 1 Best Kill Streak 7 | . 3 1 2 . . 1 7 Combat Bots Only 3 | . 3 1 2 . . 1 3 Max Kills in Single Turn 1 | . 1 1 1 . . 1 1 Gunslinging . | . . . . . . . . Exploded . | . . . . . . . . Melee . | . . . . . . . . Uniques/NPCs Destroyed . | . . . . . . . . Combat | -11 -10 -10 -9 -9 -9 -8 -8 -------- Run | Yrd Mat Min Mat Min Exi Min Mat Hostile Shots Fired 289 | . 7 42 51 . . . 189 Missed 84 | . 3 10 17 . . . 54 Hits 205 | . 4 32 34 . . . 135 Projectile 205 | . 4 32 34 . . . 135 Critical Strikes 3 | . . 2 . . . . 1 Damage Taken 2593 | . 33 483 293 . . . 1784 Core 506 | . 18 59 16 . . . 413 Absorbed by Shields . | . . . . . . . . Regen/Repaired (Parts) 216 | . . . . . . . 216 Core Remaining (%) 88 | 100 . 69 . . . 96 . Volleys Fired 88 | . 4 20 20 . . 1 43 Largest 2 | . 2 2 2 . . 2 2 Hottest 120 | . 40 40 100 . . 100 120 Shots Fired 138 | . 8 29 40 . . 2 59 Gun 97 | . 8 29 20 . . 1 39 Cannon 41 | . . . 20 . . 1 20 Launcher . | . . . . . . . . Special . | . . . . . . . . Kinetic 37 | . 8 29 . . . . . Thermal 41 | . . . 20 . . 1 20 Explosive . | . . . . . . . . Electromagnetic 60 | . . . 20 . . 1 39 Robot Hit Streak 18 | . 1 10 7 . . 3 18 Robot Miss Streak 3 | . 2 2 3 . . . 1 Penetration Max . | . . . . . . . . Secondary Targets 2 | . 1 1 . . . . . Max Gunslinging Chain 1 | . 1 1 . . . . . Shots Hit Robots 96 | . 3 23 19 . . 2 49 Core Hits 40 | . 3 5 10 . . 2 20 Critical Kills . | . . . . . . . . Critical Parts Destroyed . | . . . . . . . . Critical Strikes . | . . . . . . . . Melee Attacks . | . . . . . . . . Impact . | . . . . . . . . Slashing . | . . . . . . . . Piercing . | . . . . . . . . Sneak Attacks . | . . . . . . . . Combat Hostiles . | . . . . . . . . Follow-up Attacks . | . . . . . . . . Damage Inflicted 1616 | . 32 230 316 . . 30 1008 Guns 796 | . 32 230 114 . . 12 408 Cannons 812 | . . . 194 . . 18 600 Explosions . | . . . . . . . . Melee . | . . . . . . . . Ramming 8 | . . . 8 . . . . Kinetic 262 | . 32 230 . . . . . Thermal 812 | . . . 194 . . 18 600 Explosive . | . . . . . . . . Electromagnetic 534 | . . . 114 . . 12 408 Impact . | . . . . . . . . Slashing . | . . . . . . . . Piercing . | . . . . . . . . Highest Corruption . | . . . . . . . . Average Corruption . | . . . . . . . . Corruption Purged . | . . . . . . . . Corruption Blocked . | . . . . . . . . Overload Shots . | . . . . . . . . Overflow Damage . | . . . . . . . . Projectiles . | . . . . . . . . Explosions . | . . . . . . . . Melee . | . . . . . . . . Knockbacks . | . . . . . . . . Impact . | . . . . . . . . Kinetic . | . . . . . . . . Secondary . | . . . . . . . . Self-Inflicted Damage . | . . . . . . . . Shots . | . . . . . . . . Rammed 2 | . . . 2 . . . . Targets Rammed 2 | . . . 2 . . . . Kicked . | . . . . . . . . Crushed . | . . . . . . . . Highest Temperature 396 | . . 32 360 . . 45 396 Average Temperature 130 | . . 16 120 . . 26 149 Received Heat Transfer 726 | . . 189 51 . . . 486 Effects 4 | . . . 1 . . . 3 Shutdowns 2 | . . . . . . . 2 Energy Bleed 2 | . . . 1 . . . 1 Siege Activations . | . . . . . . . . Martial Activations . | . . . . . . . . Shielding Activations . | . . . . . . . . Robots Disrupted 1 | . . . . . . . 1 Combat Hostiles . | . . . . . . . . Robots Corrupted . | . . . . . . . . Combat Hostiles . | . . . . . . . . Parts Fried . | . . . . . . . . Impact Corruptions . | . . . . . . . . Robots Melted . | . . . . . . . . Combat Hostiles . | . . . . . . . . Parts Melted 5 | . . . 1 . . . 4 Heat Transferred 1706 | . . . 407 . . 37 1262 Parts Sabotaged . | . . . . . . . . Parts Stolen . | . . . . . . . . Parts Stripped . | . . . . . . . . Power Chain Reactions . | . . . . . . . . Alert | -11 -10 -10 -9 -9 -9 -8 -8 ------- Run | Yrd Mat Min Mat Min Exi Min Mat Maximum Alert Level . | . . . . . . . . Low Security (%) 100 | 100 100 100 100 100 . 100 100 Level 1 . | . . . . . . . . Level 2 . | . . . . . . . . Level 3 . | . . . . . . . . Level 4 . | . . . . . . . . Level 5 . | . . . . . . . . High Security . | . . . . . . . . Max Security . | . . . . . . . . Peak Influence 101 | . 60 20 72 25 . 30 101 Initial 25 | . . 13 . 25 . . . Average 7 | . 22 3 6 3 . 3 11 Influence Increases 606 | . 75 40 180 . . 30 281 Destroy 0b10 Robot/C 420 | . 60 40 120 . . 20 180 Destroy 0b10 Robot/NC 15 | . . . 5 . . . 10 Destroy Leader 74 | . 10 . 12 . . 10 42 Successful Hack 37 | . 5 . 13 . . . 19 Disable Machine 15 | . . . 15 . . . . Lose Combat Pursuer 45 | . . . 15 . . . 30 Influence Decreases 513 | . 40 75 114 66 . 30 188 Entered New Map 63 | . . 22 . 41 . . . Time Decay 342 | . 40 43 114 25 . 30 90 Lost Part 98 | . . 10 . . . . 88 Lost Ally 10 | . . . . . . . 10 Squads Dispatched 3 | . . . . . . . 3 Investigation . | . . . . . . . . Extermination . | . . . . . . . . Reinforcement 3 | . . . . . . . 3 Assault . | . . . . . . . . Garrison . | . . . . . . . . Intercept . | . . . . . . . . Searches Triggered . | . . . . . . . . Construction Impeded . | . . . . . . . . Haulers Reinforced . | . . . . . . . . Active Scanning Responses . | . . . . . . . . Cargo Convoy Interrupts . | . . . . . . . . Stealth | -11 -10 -10 -9 -9 -9 -8 -8 --------- Run | Yrd Mat Min Mat Min Exi Min Mat Distress Signals 3 | . . . 1 . . . 2 Communications Jammed 1 | . . . . . . . 1 Distress Signals 1 | . . . . . . . 1 Times Spotted 47 | . 4 2 18 . . 1 22 Peak Tracking Total 9 | . 3 2 5 . . 1 9 Tactical Retreats 3 | . . . 1 . . . 2 Traps | -11 -10 -10 -9 -9 -9 -8 -8 ------- Run | Yrd Mat Min Mat Min Exi Min Mat Traps Triggered . | . . . . . . . . Indirectly . | . . . . . . . . Trap Hack Attempts . | . . . . . . . . Triggered . | . . . . . . . . Disarmed . | . . . . . . . . Reprogrammed . | . . . . . . . . Reused . | . . . . . . . . Traps Extracted . | . . . . . . . . Installed . | . . . . . . . . Triggered . | . . . . . . . . Machines | -11 -10 -10 -9 -9 -9 -8 -8 ---------- Run | Yrd Mat Min Mat Min Exi Min Mat Machines Disabled 1 | . . . 1 . . . . Max in Single Turn 1 | . . . 1 . . . . Machines Repaired . | . . . . . . . . Machines Dismantled . | . . . . . . . . Machines Sabotaged . | . . . . . . . . Overloaded Fab Kills . | . . . . . . . . Hacking | -11 -10 -10 -9 -9 -9 -8 -8 --------- Run | Yrd Mat Min Mat Min Exi Min Mat Machines Accessed 11 | . 2 . 5 . 1 . 3 Terminals 8 | . 2 . 5 . . . 1 Fabricators . | . . . . . . . . Repair Stations 2 | . . . . . . . 2 Recycling Units . | . . . . . . . . Scanalyzers . | . . . . . . . . Garrison Access . | . . . . . . . . Total Hacks 36 | . 5 . 18 . 1 . 12 Successful 20 | . 2 . 8 . 1 . 9 Failed 16 | . 3 . 10 . . . 3 Catastrophic 1 | . 1 . . . . . . Database Lockouts . | . . . . . . . . Manual 19 | . 4 . 11 . 1 . 3 Terminals 26 | . 5 . 18 . . . 3 Fabricators . | . . . . . . . . Repair Stations 9 | . . . . . . . 9 Recycling Units . | . . . . . . . . Scanalyzers . | . . . . . . . . Garrison Access . | . . . . . . . . Terminal Hacks 5 | . 1 . 3 . 1 . . Locate Traps 1 | . . . 1 . . . . Zone Layout 3 | . 1 . 2 . . . . Proto ID Catalog 1 | . . . . . 1 . . Fabricator Hacks . | . . . . . . . . Repair Station Hacks 8 | . . . . . . . 8 Scan Component 4 | . . . . . . . 4 Repair 3 | . . . . . . . 3 Refit 1 | . . . . . . . 1 Recycling Unit Hacks . | . . . . . . . . Scanalyzer . | . . . . . . . . Garrison Access Hacks . | . . . . . . . . Unauthorized Hacks 7 | . 1 . 5 . . . 1 Terminals 7 | . 1 . 5 . . . 1 Botnet 7 | . 1 . 5 . . . 1 Fabricators . | . . . . . . . . Repair Stations . | . . . . . . . . Recycling Units . | . . . . . . . . Scanalyzers . | . . . . . . . . Garrison Access . | . . . . . . . . Data Cores Recovered . | . . . . . . . . Used . | . . . . . . . . Hacking Detections 8 | . 2 . 4 . . . 2 Full Trace Events 1 | . 1 . . . . . . Feedback Events . | . . . . . . . . Feedback Blocked . | . . . . . . . . Robot Schematics Acquired . | . . . . . . . . Robots Built . | . . . . . . . . Authchips . | . . . . . . . . Time . | . . . . . . . . Total Robot Build Rating . | . . . . . . . . Part Schematics Acquired . | . . . . . . . . Parts Built . | . . . . . . . . Authchips . | . . . . . . . . Time . | . . . . . . . . Total Part Build Rating . | . . . . . . . . Part Studies Acquired . | . . . . . . . . Parts Repaired 3 | . . . . . . . 3 Time 90 | . . . . . . . 90 Parts Recycled . | . . . . . . . . Recycled Matter . | . . . . . . . . Retrieved Matter . | . . . . . . . . Retrieved Components . | . . . . . . . . Parts Scanalyzed . | . . . . . . . . Part Schematics Acquired . | . . . . . . . . Parts Damaged . | . . . . . . . . Bothacking | -11 -10 -10 -9 -9 -9 -8 -8 ------------ Run | Yrd Mat Min Mat Min Exi Min Mat Used RIF Installer . | . . . . . . . . Robots Hacked . | . . . . . . . . Non-combat . | . . . . . . . . Combat . | . . . . . . . . Robot Hacks Applied . | . . . . . . . . Relay Couplers Released . | . . . . . . . . Fabnet Peak Effective % . | . . . . . . . . Robots Rewired 1 | . . . . . . . 1 Allies Hacked . | . . . . . . . . Hacks Repelled . | . . . . . . . . Allies | -11 -10 -10 -9 -9 -9 -8 -8 -------- Run | Yrd Mat Min Mat Min Exi Min Mat Total Allies 1 | . . . . . . . 1 Largest Group 1 | . . . . . . . 1 Highest-Rated Group 8 | . . . . . . . 8 Highest-Rated Ally 8 | . . . . . . . 8 Total Orders . | . . . . . . . . Ally Attacks . | . . . . . . . . Total Damage . | . . . . . . . . Kills . | . . . . . . . . Allies Corrupted 1 | . . . . . . . 1 Allies Melted . | . . . . . . . . Intel | -11 -10 -10 -9 -9 -9 -8 -8 ------- Run | Yrd Mat Min Mat Min Exi Min Mat Active Infowar (turns) 1926 | . . . 351 244 386 306 639 Sensors 1481 | . . . 351 244 386 306 194 Jamming 453 | . . . . . . . 453 Robot Analysis Total . | . . . . . . . . Derelict Logs Recovered . | . . . . . . . . Drone Launches . | . . . . . . . . Drone Recoveries . | . . . . . . . . Exploration | -11 -10 -10 -9 -9 -9 -8 -8 ------------- Run | Yrd Mat Min Mat Min Exi Min Mat Turns Passed 3168 | 85 152 242 1000 244 386 306 753 Spaces Moved 1665 | 51 87 118 537 153 241 189 289 Core 13 | 6 . . . . . . 7 Treads 1652 | 45 87 118 537 153 241 189 282 Legs . | . . . . . . . . Wheels . | . . . . . . . . Hover . | . . . . . . . . Flight . | . . . . . . . . Fastest Speed 50 | 50 160 160 160 160 160 160 145 Average Speed 160 | 151 160 160 160 160 160 160 162 Slowest Speed 350 | 160 160 160 160 160 160 160 350 Overloaded Moves . | . . . . . . . . Propulsion Burnouts . | . . . . . . . . Robots Hopped . | . . . . . . . . Potential Cave-ins . | . . . . . . . . Cave-ins Triggered . | . . . . . . . . Exploration Rate (%) 31 | 4 22 26 41 31 62 43 25 Regions Visited 7 Branch Regions 4 Pre-discovered Areas 1 | . . . . 1 . . . Known Exits Taken 6 | . 1 1 1 1 1 1 . Unknown Exits Taken 1 | 1 . . . . . . . Scrap Searched 1 | . . . . . . 1 . Spaces Dug . | . . . . . . . . Terrain Destroyed . | . . . . . . . . Melee . | . . . . . . . . Projectile . | . . . . . . . . AOE . | . . . . . . . . Terrain Rammed . | . . . . . . . . Walls Destroyed . | . . . . . . . . Machines Disabled . | . . . . . . . . Actions | -11 -10 -10 -9 -9 -9 -8 -8 --------- Run | Yrd Mat Min Mat Min Exi Min Mat Total 2025 | 56 92 145 637 152 242 191 510 Wait 211 | . . . 58 . . . 153 Move 1658 | 50 86 117 536 152 240 188 289 Hop . | . . . . . . . . Pick Up 16 | . 1 . 11 . 1 1 2 Fast Attach 24 | 6 1 4 3 . . . 10 Attach 2 | . . . . . . . 2 Detach 2 | . . 1 1 . . . . Swap 5 | . . 1 2 . . . 2 Drop 14 | . . 2 4 . 1 1 6 Fire 88 | . 4 20 20 . . 1 43 Melee . | . . . . . . . . Ram . | . . . . . . . . Kick . | . . . . . . . . Crush 2 | . . . 2 . . . . Escape Stasis . | . . . . . . . . Rewire 3 | . . . . . . . 3 Trap . | . . . . . . . . Miscellaneous . | . . . . . . . . Route ------- -11/Scrapyard -10/Materials -10/Mines -9/Materials (discovered 2 exits: *Mat / *Min) -9/Mines -9/Exiles -8/Mines -8/Materials History --------- Turn | Location | Event 12 | -11/Scrapyard | Discovered new exit (range 15) 86 | -11/Scrapyard | Entered Materials 190 | -10/Materials | Discovered new exit (range 10) 224 | -10/Materials | Identified exit to Mines 238 | -10/Materials | Entered Mines 294 | -10/Mines | Discovered new exit (range 8) 312 | -10/Mines | Build established: Mutant 426 | -10/Mines | Lost 3 parts (1p1n1w) 478 | -10/Mines | Identified exit to Materials 480 | -10/Mines | Entered Materials 480 | -9/Materials | Evolved 2 slots: Utility x2 1217 | -9/Materials | Discovered new exit (range 7) 1361 | -9/Materials | Discovered new exit (range 16) 1479 | -9/Materials | Identified exit to Mines 1480 | -9/Materials | Entered Mines 1481 | -9/Mines | Learned location of Storage (-9) 1515 | -9/Mines | Received a Rocket Launcher from a helpful Derelict 1712 | -9/Mines | Deemed a non-threat by the Exiles lab entrance 1714 | -9/Mines | Discovered new exit (range 5) 1720 | -9/Mines | Identified exit to Exiles 1724 | -9/Mines | Entered Exiles 1764 | -9/Exiles | Met 8R-AWN 1795 | -9/Exiles | Met EX-HEX 1852 | -9/Exiles | Met EX-BIN 1875 | -9/Exiles | Aligned with FarCom system 1876 | -9/Exiles | Given EX-Vault access code 1923 | -9/Exiles | Opened EX-Vault 1946 | -9/Exiles | Found Gui. Plasma Cannon 1984 | -9/Exiles | Warned to stay clear of 0b10 Research branches 2038 | -9/Exiles | Met EX-DEC 2094 | -9/Exiles | Discovered new exit (range 10) 2105 | -9/Exiles | Identified exit to Mines 2110 | -9/Exiles | Left Exiles lab with Gui. Plasma Cannon 2110 | -9/Exiles | Entered Mines 2398 | -8/Mines | Discovered new exit (range 11) 2404 | -8/Mines | Build established: Skirmisher 2414 | -8/Mines | Identified exit to Materials 2416 | -8/Mines | Entered Materials 2416 | -8/Materials | Evolved 2 slots: Power x1, Propulsion x1 2713 | -8/Materials | Repaired Lgt. Nuclear Core 2740 | -8/Materials | Repaired Lgt. Treads 2785 | -8/Materials | Repaired Lgt. Treads 2902 | -8/Materials | Build established: Mutant 3131 | -8/Materials | Lost 9 parts (2p3n2u2w) 3132 | -8/Materials | Core integrity fell below 50% 3169 | -8/Materials | Self-destructed Last Messages --------------- Heat Sink. 03114_ Acquired Lgt. Treads. 03115_ R-06 Scavenger collects Corrupted Aluminum Leg. 03116_ R-06 Scavenger destroyed. 03119_ Penetrated by Slug. 03128_ X-62 Marksman destroyed. 03128_ ALERT: Hostiles spotted, dispatching reinforcements to Terminal M007. 03131_ Penetrated by Slug. 03135_ Transmission Jammer destroyed. 03138_ Acquired Imp. Deuterium Engine. 03142_ Slug penetrates X-62 Marksman. 03144_ Penetrated by Slug. 03146_ Targeting Computer melted. 03146_ Core Analyzer melted. 03146_ Imp. Carbon-fiber Leg melted. 03146_ X-62 Marksman destroyed. 03147_ Acquired 15 matter. 03148_ X-62 Marksman destroyed. Map ----- +----------------------------------------------------+ | ?????????????????????????????????????????????????? | | ?????????????????????????????????????????????????? | | ?????????????????????????????????????????????????? | | ??????????????????????#######????????????????????? | | ??????????????????????# ????????????????????? | | ??????????????????????# ?????????????????????? | | ??????????????????????# ??????????????????????? | | ??????????????????????# #??????????????????????? | | ????????????########### #??????????????????????? | | ????????????# = # #????????####??????????? | | #######?????# # ####### #??????????? | | ]]==[[#?????# # #??????????? | | ]]==[[#?????# + w T ???????????? | | #?????# # w #??????????? | | ####### # ####### #??????????? | | / ! # #??????????????????????? | | ########## # #??????????????????????? | | #################### #??????????????????????? | | # #?????????# #??????????????????????? | | # """ # ????????# % #??????????????????????? | | # """ # ??????# #??????????????????????? | | # """ # ! ????# #??????????????????????? | | + # ??#%=!#??????????????????????? | | # # # [!#??????????????????????? | | # " " [# ! +!*%#??????????????????????? | | # "R" # #%=@#??????????????????????? | | # """ # ??#%[!#??????????????????????? | | ###############???##%%%##?????????????????????? | | #?????????????????# === #?????????????????????? | | ######????????????#%!= #?????????????????????? | | #????????????#= !![#?????????????????????? | | #????????????#[!!!=#?????????????????????? | | #????????????#[![=%#?????????????????????? | | ## #????????????###u###?????????????????????? | | ?# #??????????????#%#????????g??????????????? | | ?# #??????????????#%#???????????????????????? | | ##+## #??????????????#g#???????????????????????? | | / #??????????????# #???????????????????????? | | # #??????????????#+#???????????????????????? | | # ########??????? ???????????????????????? | | """ # # #??????? gg???????????????????????? | | """ # + #???????! ???????????????????????? | | """ # # #??????? ??????H????????????????? | | ##### # #???????!!!???????????????????????? | | ##### # #???????!?!???????????????????????? | | # # #?????????????????????????????????? | | # + #?????????????????????????????????? | | + # #?????????????????????????????????? | | "" # # #?????????????????????????????????? | | R"" # # #?????????????????????????????????? | +----------------------------------------------------+ Best States ------------- Heat Dissipation 31 Energy Generation 20 Energy Capacity 290 Matter Stores 300 Matter Capacity 300 Sight Range 16 Robot Scan Range 15 Terrain Scan Density 10 Jamming Range 12 Armor Coverage 225 Evasion (%) 40 Targeting Accuracy 6 Recoil Reduction 3 Item Schematics ----------------- None Robot Schematics ------------------ None Fabricated ------------ Nothing Repaired ---------- Lgt. Nuclear Core | 24% | -8/Materials Lgt. Treads | 34% | -8/Materials Lgt. Treads | 38% | -8/Materials Studied --------- None Alien Tech Used ----------------- None Achievements -------------- Fitting Room Challenges ------------ None Game ------ Seed TerrorTeleporterInverter Manual? 0 Play Time 00:20:17 Cumulative 53.0 hours Start 2026.03.18 @ 05:59:35 End 2026.03.18 @ 06:18:26 Sessions 1 Manual Loads 0 Difficulty Rogue Special Mode None Game No. 75 Rogue 51 Adventurer 24 Explorer 0 Win Type - Total 0 Types 0/0/0/0/0/0/0/0/0/0 Lore% 33 Gallery% 29 Achievement% 24 Wizard Run 0 Options --------- Layout 1 ASCII 0 Keyboard 1 Movement Arrows Keybinds 0 Fullscreen 1 Font 24/Smallcaps Map View 50x35 Zoom Use 0% Tactical HUD 1 Map Filters NONE Filters NONE Steam 1 RUN: e4b6f931-9c34-4c67-a55d-6a85b7f19682